bitfinex-derivatives/quotes_ETHF0:USTF0_20250830
["timestamp","ask_amount","ask_price","bid_price","bid_amount"]
[1756532054226,0.4949,4391.1,4389.4,0.41004]
[1756532054227,0.4949,4390.6,4390.5,3.2078]
[1756532055341,1.076832,4390.6,4390.5,3.2078]
[1756532055737,0.2984,4390.6,4390.5,3.4955]
[1756532056435,0.88109499,4390.6,4390.5,3.4955]
[1756532057134,1.07759499,4390.6,4390.5,3.2078]
[1756532057541,0.58269499,4390.6,4390.5,3.4955]
[1756532057843,1.07759499,4390.6,4390.5,3.4955]
[1756532058043,1.07759499,4390.6,4390.5,3.3847]
[1756532058245,0.58269499,4390.6,4390.5,3.7375]
[1756532058547,0.2984,4391.6,4390.5,3.6267]
[1756532058840,0.58295828,4391.5,4390.6,0.1108]
[1756532059042,0.2984,4392.2,4391.5,0.1103]
[1756532059244,1.23230319,4392.8,4392.1,0.2869]
[1756532059433,0.4949,4392.2,4391.5,0.1103]
[1756532059637,0.4949,4391.8,4391.7,0.243]
[1756532059835,1.07761993,4391.8,4391.7,0.243]
[1756532060036,0.58271993,4391.8,4391.7,0.5299]
[1756532060231,3.2078,4392.9,4391.7,0.1766]
[1756532060437,3.792,4396.6,4391.7,0.1766]
[1756532060438,0.62823333,4392.4,4391.8,0.3543]
[1756532060940,0.13333333,4392.4,4392.3,0.1766]
[1756532061240,0.13333333,4392.4,4392.3,0.5309]
[1756532061641,0.02303333,4392.4,4392.3,4.14847]
[1756532061848,3.5062,4394.4,4392.3,7.4518]
[1756532062138,0.5803902,4394.3,4393.4,3.2078]
[1756532062343,0.5803902,4394.3,4393.0,0.245]
[1756532062344,0.2984,4393.7,4393.0,0.245]
[1756532062539,0.5803902,4393.6,4393.5,3.2078]
[1756532062737,1.23230319,4394.9,4393.6,0.40965]
[1756532062942,0.2984,4394.7,4393.8,3.2078]
[1756532063136,3.2078,4395.0,4393.9,10.4887]
[1756532063342,1.23230319,4395.4,4394.3,3.2078]
[1756532063343,0.2984,4395.4,4394.3,3.2078]
[1756532063646,1.53070319,4395.5,4394.3,3.2078]
[1756532063841,4.44010319,4395.8,4394.8,3.2078]
[1756532064140,0.2984,4396.0,4395.5,3.2078]
[1756532064334,0.2984,4396.1,4394.8,0.249]
[1756532064540,3.2158,4396.2,4395.3,3.2078]
[1756532064740,0.2984,4396.1,4395.4,3.2078]
[1756532065039,0.13333333,4396.9,4396.1,0.40942]
[1756532065243,0.13333333,4396.9,4396.8,3.2078]
[1756532065448,0.43173333,4396.9,4396.8,3.2078]
[1756532065948,1.8,4398.2,4396.8,7.43524]
[1756532066135,1.8,4398.2,4396.5,0.25]
[1756532066136,1.8,4398.2,4398.1,3.2078]
[1756532066337,1.8,4398.2,4398.1,3.4628]
[1756532066542,3.5062,4399.6,4398.1,7.69017]
[1756532066741,1.0,4400.0,4398.9,3.2078]
[1756532067241,1.2984,4400.0,4399.6,3.2078]
[1756532067642,1.2984,4400.0,4399.5,0.255]
[1756532067643,1.0,4400.0,4398.9,3.2078]
[1756532067941,1.0,4400.0,4399.1,3.2078]
[1756532068145,1.0,4400.0,4399.2,3.2078]
[1756532068444,1.0,4400.0,4398.4,3.2078]
[1756532068640,0.2984,4399.9,4398.4,3.2078]
[1756532068843,0.2984,4399.7,4398.6,3.2078]
[1756532069040,3.2078,4399.7,4398.7,0.255]
[1756532069346,3.2078,4399.2,4397.8,0.255]
[1756532069546,3.2078,4398.7,4397.3,3.2078]
[1756532069843,3.2078,4398.7,4396.7,32.783]
[1756532069844,3.2078,4399.8,4398.6,3.2078]
[1756532070041,0.2984,4399.8,4398.7,0.255]
[1756532070245,0.2984,4399.8,4398.8,3.2078]
[1756532070643,0.2984,4399.9,4399.3,3.2078]
[1756532070939,0.2984,4399.9,4397.2,0.40931]
[1756532070940,1.0,4400.0,4398.7,0.256]
[1756532071441,0.2984,4399.9,4399.2,3.2078]
[1756532071640,1.0,4400.0,4399.2,3.2078]
[1756532071840,0.2984,4399.8,4399.2,3.2078]
[1756532072043,4.0,4399.9,4399.2,3.2078]
[1756532072239,0.2984,4399.8,4399.2,3.2078]
[1756532072438,0.2984,4399.7,4398.2,3.2078]
[1756532072742,0.2984,4399.6,4399.1,3.2078]
[1756532072935,4.2078,4400.0,4399.0,3.2078]
[1756532073240,0.2984,4399.8,4399.0,3.2078]
[1756532073738,0.2984,4399.6,4397.9,3.2078]
[1756532073938,3.2078,4398.0,4396.5,0.2952]
[1756532074146,0.2984,4397.8,4396.5,0.2952]
[1756532074547,0.2984,4397.4,4396.5,0.2952]
[1756532074744,0.2984,4397.3,4396.0,3.4628]
[1756532075044,0.255,4397.2,4396.0,3.4628]
[1756532075244,0.255,4397.2,4396.0,3.2078]
[1756532075446,0.2984,4396.8,4395.8,0.2952]
[1756532075846,0.2984,4396.8,4395.4,3.2078]
[1756532076549,3.2078,4396.9,4395.4,3.2078]
[1756532076740,3.2078,4397.4,4396.1,3.2078]
[1756532076945,0.285,4398.2,4396.8,0.3048]
[1756532077144,0.285,4398.2,4397.0,0.3048]
[1756532077445,0.255,4398.7,4397.2,3.2078]
[1756532077446,0.285,4398.6,4397.2,3.2078]
[1756532077649,0.285,4398.6,4397.3,0.3048]
[1756532077945,0.285,4398.4,4397.3,0.3048]
[1756532078149,3.2078,4398.0,4397.2,3.2078]
[1756532078352,3.2078,4398.0,4396.9,0.255]
[1756532078353,0.285,4397.9,4396.9,0.255]
[1756532078559,0.285,4398.4,4397.0,0.255]
[1756532078855,0.285,4398.4,4397.1,0.3048]
[1756532079051,0.285,4398.4,4397.1,0.4878]
[1756532079253,0.285,4398.4,4397.2,0.3048]
[1756532079550,3.4068,4398.5,4397.0,3.2078]
[1756532080247,0.285,4398.4,4397.1,0.3048]
[1756532080447,0.285,4398.4,4397.2,0.255]
[1756532081054,0.285,4398.4,4397.3,0.3048]
[1756532081347,0.285,4398.4,4397.6,0.3048]
[1756532082450,0.212,4398.7,4397.5,3.2078]
[1756532082652,0.285,4398.5,4397.5,3.2078]
[1756532083054,0.285,4398.5,4397.6,0.3048]
[1756532084950,0.285,4398.5,4397.1,0.255]
[1756532084951,3.4928,4398.5,4397.1,0.3048]
[1756532086065,0.285,4398.4,4396.6,0.3048]
[1756532086260,0.285,4398.1,4396.5,3.2078]
[1756532086458,3.2078,4397.6,4396.5,3.2078]
[1756532086759,0.285,4397.4,4396.5,3.2078]
[1756532087356,0.285,4397.4,4396.6,0.3048]
[1756532087956,3.4618,4398.1,4396.5,3.2078]
[1756532088151,0.285,4397.5,4396.5,3.2078]
[1756532088352,0.285,4397.5,4396.5,3.5126]
[1756532089155,0.285,4398.4,4397.3,0.3048]
[1756532089354,0.285,4398.2,4397.3,0.3048]
[1756532089558,0.285,4398.0,4397.3,0.3048]
[1756532089755,0.57486867,4397.9,4396.9,0.3048]
[1756532089956,0.285,4398.0,4396.9,0.3048]
[1756532090261,0.57349657,4397.9,4396.9,0.3048]
[1756532090452,0.285,4397.7,4396.9,0.3048]
[1756532090652,0.285,4397.5,4396.9,0.3048]
[1756532091257,0.57551931,4397.4,4396.9,0.3048]
[1756532091457,0.57551931,4397.3,4396.9,0.3048]
[1756532091657,0.285,4397.1,4396.9,0.3048]
[1756532091856,4.44010319,4398.0,4396.9,0.3048]
[1756532092058,0.285,4397.6,4396.7,3.2078]
[1756532092259,0.285,4397.4,4396.7,3.2078]
[1756532092460,0.57552928,4397.3,4396.7,3.2078]
[1756532092661,0.285,4397.2,4396.4,0.3048]
[1756532092859,0.57552928,4397.1,4396.4,0.3048]
[1756532093360,0.86052928,4397.0,4396.4,0.3048]
[1756532093550,0.57552928,4396.9,4396.4,0.3048]
[1756532093756,0.57552928,4396.9,4396.3,0.3048]
[1756532093959,0.57552928,4396.8,4396.3,0.3048]
[1756532094155,0.57552928,4396.7,4396.3,0.3048]
[1756532094357,3.4928,4397.2,4396.3,0.3048]
[1756532094358,0.57552928,4396.6,4396.3,0.3048]
[1756532094556,0.57552928,4396.5,4396.2,3.2078]
[1756532094756,0.57552928,4396.4,4396.3,0.3048]
[1756532094956,0.57552928,4397.1,4396.3,0.3048]
[1756532095158,0.57552928,4397.0,4396.3,0.3048]
[1756532095361,0.57552928,4396.9,4396.3,0.3048]
[1756532095559,0.57552928,4396.8,4395.7,3.2078]
[1756532095860,1.23230319,4396.4,4395.2,3.5126]
[1756532096066,0.86052928,4396.3,4395.2,3.5126]
[1756532096262,0.57552928,4396.2,4395.2,3.5126]
[1756532096459,0.57552928,4396.1,4395.2,3.5126]
[1756532096658,0.86052928,4396.0,4395.2,3.5126]
[1756532096967,0.57552928,4395.9,4395.2,3.5126]
[1756532097261,0.285,4395.8,4395.2,3.2078]
[1756532097455,1.51730319,4395.6,4395.2,3.2078]
[1756532097656,0.57552928,4395.5,4395.2,3.2078]
[1756532097860,1.23230319,4395.3,4394.5,3.2078]
[1756532098167,0.285,4395.0,4394.5,3.2078]
[1756532098459,0.285,4394.7,4394.5,3.5126]
[1756532098664,0.57552928,4394.6,4394.5,3.2078]
[1756532099268,0.285,4394.6,4394.5,3.2078]
[1756532099461,0.86052928,4394.6,4394.5,3.2078]
[1756532100359,0.86052928,4394.6,4393.7,3.5126]
[1756532100360,0.285,4394.5,4393.7,3.5126]
[1756532100565,0.57552928,4394.4,4393.7,3.5126]
[1756532100866,0.57552928,4394.4,4393.8,0.3048]
[1756532101159,1.23230319,4396.2,4394.9,0.40953]
[1756532101366,0.1894018,4396.1,4395.2,3.2078]
[1756532101558,0.1894018,4396.0,4395.2,3.2078]
[1756532101757,0.1894018,4395.9,4395.2,3.2078]
[1756532102065,0.1894018,4395.8,4395.2,3.2078]
[1756532102264,0.1894018,4395.7,4395.2,3.2078]
[1756532102458,0.18945755,4395.6,4395.2,3.2078]
[1756532102665,0.18945755,4395.5,4395.2,3.2078]
[1756532102864,0.285,4396.3,4395.2,3.2078]
[1756532102865,0.18945755,4395.4,4395.2,3.2078]
[1756532103058,0.18945755,4395.3,4395.2,3.2078]
[1756532103457,0.18945755,4395.3,4395.2,3.4608]
[1756532104760,0.18945755,4395.3,4395.2,3.2078]
[1756532105260,0.18945755,4395.3,4395.2,3.4608]
[1756532105760,0.18945755,4395.3,4393.8,32.766]
[1756532105761,0.285,4395.2,4394.7,3.2078]
[1756532105965,0.18945755,4395.1,4394.7,3.2078]
[1756532106162,0.18945755,4395.0,4394.7,3.2078]
[1756532106464,0.285,4394.8,4393.9,3.2078]
[1756532106662,0.18945755,4394.7,4394.0,0.253]
[1756532106857,0.18945755,4394.6,4394.0,0.253]
[1756532107061,0.18945755,4394.5,4394.0,0.253]
[1756532107261,0.18945755,4394.4,4394.0,0.253]
[1756532107459,0.2904,4394.2,4393.9,3.2078]
[1756532107662,0.2904,4394.0,4393.3,3.4608]
[1756532107862,0.18945755,4393.9,4393.3,3.2078]
[1756532108069,0.18945755,4393.8,4393.3,3.2078]
[1756532108373,0.2904,4393.6,4393.3,3.2078]
[1756532108574,0.47985755,4393.5,4393.3,3.2078]
[1756532108762,0.47985755,4393.4,4393.3,3.2078]
[1756532109858,0.18945755,4393.4,4392.7,3.2078]
[1756532110061,0.18945755,4393.3,4392.7,3.2078]
[1756532110266,0.2904,4393.1,4392.7,3.2078]
[1756532110471,0.2904,4392.9,4392.7,3.2078]
[1756532111259,3.2078,4393.7,4392.7,3.2078]
[1756532111563,0.2904,4392.8,4392.7,3.2078]
[1756532111866,0.47938365,4392.8,4392.7,3.2078]
[1756532112558,0.47938365,4392.8,4392.7,3.19713272]
[1756532112963,0.47929212,4392.8,4392.7,3.19713272]
[1756532113368,0.18889212,4392.8,4391.7,3.2078]
[1756532113570,0.18881282,4392.7,4392.2,3.2078]
[1756532113872,0.18882948,4392.6,4391.8,0.252]
[1756532114062,0.2904,4393.1,4391.7,3.2078]
[1756532114063,0.2904,4392.4,4391.7,3.2078]
[1756532114467,0.2904,4392.6,4391.7,3.2078]
[1756532114665,0.18876234,4392.5,4391.7,3.2078]
[1756532114868,0.2904,4392.3,4391.7,3.2078]
[1756532115068,0.18876234,4392.2,4391.1,3.2078]
[1756532115268,0.2904,4392.0,4391.1,3.2078]
[1756532115463,0.18876234,4391.9,4391.1,3.2078]
[1756532115665,0.2904,4391.7,4391.1,3.2078]
[1756532115963,0.252,4392.3,4390.3,0.40996]
[1756532115964,0.2904,4391.5,4390.3,0.40996]
[1756532116162,0.18876234,4391.4,4390.2,0.40997]
[1756532116367,0.18876234,4391.4,4390.3,0.252]
[1756532116568,0.18876234,4391.4,4390.2,0.40997]
[1756532116770,0.2904,4391.3,4390.3,0.251]
[1756532116974,0.18876234,4391.2,4390.1,1.79992202]
[1756532117273,0.18876234,4391.1,4390.1,1.54892202]
[1756532117463,0.2904,4390.9,4390.1,1.54892202]
[1756532117667,0.20177249,4390.8,4390.1,1.54892202]
[1756532117970,0.2904,4390.6,4390.1,1.54892202]
[1756532118169,0.2904,4391.0,4390.1,1.54892202]
[1756532118366,0.20161074,4390.9,4390.1,1.54892202]
[1756532118567,0.2904,4390.4,4390.1,1.54892202]
[1756532118769,3.2078,4390.5,4390.1,1.54892202]
[1756532118978,0.20163946,4390.4,4390.1,1.54892202]
[1756532119272,0.2904,4390.2,4390.1,1.54892202]
[1756532119473,0.49203946,4390.2,4390.1,1.54892202]
[1756532120067,0.49193345,4390.2,4390.1,1.54892202]
[1756532120273,4.49193345,4390.2,4389.3,3.2078]
[1756532120474,0.1134,4390.4,4388.1,0.41016]
[1756532120475,0.2904,4389.8,4388.7,0.3049]
[1756532120672,0.2904,4389.6,4388.7,0.3049]
[1756532120875,0.20153345,4389.5,4388.7,0.3049]
[1756532121074,0.2904,4389.6,4388.7,0.3049]
[1756532121370,0.2904,4389.6,4388.9,0.41009]
[1756532121580,3.2078,4389.9,4389.2,3.2078]
[1756532121770,0.20129094,4389.8,4389.2,3.2078]
[1756532121972,3.2078,4389.9,4389.3,0.3049]
[1756532122272,0.20120905,4389.8,4389.3,0.41005]
[1756532122474,3.2078,4389.9,4389.7,0.3049]
[1756532122773,3.2078,4389.9,4389.8,0.3049]
[1756532124768,3.4982,4389.9,4389.3,0.3049]
[1756532125167,0.25,4389.8,4389.2,3.2078]
[1756532125375,0.25,4389.8,4389.3,0.3049]
[1756532125576,0.25,4389.8,4389.2,3.5127]
[1756532125577,0.5404,4389.8,4389.2,3.5127]
[1756532127172,0.5404,4389.8,4388.7,0.3049]
[1756532127173,0.49165345,4389.7,4388.7,0.3049]
[1756532127382,0.2904,4389.5,4388.7,0.3049]
[1756532127680,0.2904,4389.3,4388.7,0.3049]
[1756532127879,0.45125345,4389.2,4388.7,0.3049]
[1756532128080,0.2904,4389.0,4388.5,3.2078]
[1756532128478,0.2904,4389.1,4388.5,3.5127]
[1756532128676,0.20126127,4389.0,4388.5,3.5127]
[1756532128872,0.4931,4388.6,4388.0,3.5127]
[1756532129074,0.7251,4388.6,4388.0,3.5127]
[1756532129273,0.4347,4388.6,4388.0,3.2078]
[1756532129583,0.4931,4388.1,4388.0,3.2078]
[1756532129780,0.2904,4388.1,4387.5,0.3049]
[1756532130085,0.2904,4387.9,4387.5,0.3049]
[1756532130283,0.25,4388.0,4387.4,3.2078]
[1756532130489,0.25,4388.0,4387.4,3.5127]
[1756532131171,0.2904,4388.6,4387.9,3.2078]
[1756532131377,3.2078,4388.9,4388.0,0.3049]
[1756532131685,0.2904,4388.7,4388.0,0.3049]
[1756532131878,0.2010876,4388.6,4388.0,0.3049]
[1756532133275,3.2078,4389.4,4388.5,0.3049]
[1756532133482,0.20143381,4389.3,4388.5,0.41013]
[1756532133681,0.20143381,4389.2,4389.1,0.3049]
[1756532134075,0.25,4389.8,4389.1,0.3049]
[1756532134287,0.20155723,4389.7,4389.1,0.3049]
[1756532134479,0.20155723,4389.6,4389.0,0.3049]
[1756532134680,0.20155723,4389.5,4389.0,0.3049]
[1756532134880,0.20155723,4389.4,4389.0,0.3049]
[1756532135182,0.20155723,4389.3,4389.0,0.3049]
[1756532135380,0.20155723,4389.2,4389.0,0.3049]
[1756532135588,0.2904,4390.6,4389.7,0.1075]
[1756532135784,0.2904,4390.6,4390.0,3.2078]
[1756532135976,0.4038,4390.4,4390.0,3.2078]
[1756532136180,0.2904,4390.3,4390.1,0.1075]
[1756532136376,0.2904,4390.3,4390.0,3.2078]
[1756532136887,0.1134,4390.4,4390.0,3.2078]
[1756532137083,0.41,4390.4,4390.0,3.2078]
[1756532137290,0.2966,4390.4,4390.0,3.2078]
[1756532137877,0.2966,4390.8,4390.1,0.1078]
[1756532138081,0.56676802,4390.7,4390.1,0.1078]
[1756532138283,0.56676802,4390.6,4390.0,3.61778]
[1756532138483,0.56676802,4390.6,4389.8,0.25]
[1756532138484,0.1134,4390.7,4390.5,3.2078]
[1756532138689,0.1134,4390.7,4390.6,0.1078]
[1756532138891,0.1134,4390.7,4390.6,0.249]
[1756532139082,0.41,4390.7,4390.3,0.40995]
[1756532139384,0.1134,4390.7,4390.4,0.40994]
[1756532139586,0.1134,4390.7,4390.4,3.61774]
[1756532139886,0.1134,4390.7,4390.5,0.1078]
[1756532140086,0.1134,4390.7,4390.4,3.61774]
[1756532140293,0.1134,4390.7,4390.6,0.2803]
[1756532141891,0.41,4390.7,4390.6,0.2803]
[1756532142795,0.0056,4390.7,4390.6,4.2803]
[1756532143092,0.2966,4391.8,4390.6,4.0]
[1756532143287,0.4885,4391.4,4391.3,3.2078]
[1756532143589,0.76095833,4391.4,4390.2,3.2078]
[1756532143786,0.4885,4391.2,4391.1,3.2078]
[1756532143985,1.05755833,4391.2,4391.1,3.2078]
[1756532144191,0.86565833,4391.2,4391.1,3.2078]
[1756532144388,0.56905833,4391.2,4391.1,3.2078]
[1756532144692,4.0,4391.2,4390.1,3.4568]
[1756532144893,0.2966,4391.0,4390.1,3.4568]
[1756532145189,0.2966,4390.7,4390.1,3.4568]
[1756532145389,0.2966,4390.5,4390.1,3.4568]
[1756532145586,0.56952973,4390.4,4390.1,3.4568]
[1756532145787,0.2966,4390.7,4390.1,3.4568]
[1756532146098,0.56952455,4390.6,4390.1,0.249]
[1756532146294,0.2966,4391.2,4390.5,3.2078]
[1756532146503,1.64307092,4392.1,4390.5,3.2078]
[1756532146504,0.0056,4390.8,4390.5,0.249]
[1756532146791,0.0056,4390.8,4390.7,3.2078]
[1756532147397,0.2966,4391.7,4390.7,3.2078]
[1756532147583,0.2966,4391.7,4390.8,0.249]
[1756532147584,0.76500985,4391.6,4390.8,0.249]
[1756532147785,0.19556787,4391.5,4390.8,0.249]
[1756532147984,0.19556787,4391.4,4390.8,0.249]
[1756532148191,0.19556787,4391.3,4390.8,0.249]
[1756532148389,0.19556787,4391.2,4390.8,0.249]
[1756532148595,0.3022,4391.5,4391.1,3.2078]
[1756532148795,0.4920784,4391.4,4391.1,3.2078]
[1756532148999,0.4920784,4391.3,4391.1,3.2078]
[1756532149199,0.1954784,4391.2,4391.1,3.2078]
[1756532149797,0.6839784,4391.2,4391.1,3.2078]
[1756532150389,0.4920784,4391.2,4391.1,3.2078]
[1756532150590,0.6839784,4391.2,4391.1,3.2078]
[1756532152687,0.3873784,4391.2,4390.4,3.2078]
[1756532152891,0.2966,4391.0,4390.4,3.4558]
[1756532153086,0.1954784,4390.9,4390.4,3.4558]
[1756532153301,0.1919,4390.5,4390.4,3.2078]
[1756532153604,0.4885,4390.5,4390.4,3.2078]
[1756532153901,0.6839784,4390.5,4390.4,3.2078]
[1756532155202,0.4885,4390.5,4390.4,3.2078]
[1756532155399,0.3872493,4390.5,4389.9,3.2078]
[1756532155596,0.1953493,4390.4,4389.9,3.2078]
[1756532155795,0.1953493,4390.3,4389.9,3.2078]
[1756532156001,3.2078,4391.3,4389.9,3.2078]
[1756532156302,0.4885,4390.0,4389.9,3.2078]
[1756532156499,0.68391109,4390.0,4389.9,3.2078]
[1756532157790,0.68391109,4390.0,4388.3,32.806]
[1756532157997,0.4885,4389.4,4389.3,3.2078]
[1756532158192,0.68391109,4389.4,4389.3,3.2078]
[1756532158606,0.19541109,4389.4,4389.3,3.2078]
[1756532158797,0.2966,4390.2,4389.3,3.4548]
[1756532159105,0.19550043,4390.1,4389.3,3.4548]
[1756532159305,0.19550043,4390.0,4389.3,3.4548]
[1756532159501,0.19550043,4389.9,4389.3,3.4548]
[1756532159705,0.49210043,4389.8,4389.3,3.4548]
[1756532159898,0.19550043,4389.7,4389.3,3.4548]
[1756532160402,0.19550043,4389.6,4389.3,3.4548]
[1756532160600,0.19550043,4389.5,4389.3,3.4548]
[1756532160901,0.19550043,4389.4,4389.3,3.4548]
[1756532161108,0.19550043,4389.8,4389.3,3.2078]
[1756532161307,0.19550043,4389.7,4389.3,3.2078]
[1756532161500,0.49210043,4389.6,4389.3,3.2078]
[1756532161799,0.4885,4389.4,4389.3,3.2078]
[1756532162009,0.68400043,4389.4,4389.3,3.2078]
[1756532162205,0.19550043,4389.4,4389.3,3.2078]
[1756532162398,0.19550043,4389.8,4389.3,3.2078]
[1756532162597,0.19550043,4389.7,4389.3,3.2078]
[1756532162805,0.19550043,4389.6,4389.3,3.2078]
[1756532163006,0.19550043,4389.5,4389.3,3.2078]
[1756532163201,0.19550043,4389.4,4389.3,3.2078]
[1756532163801,0.19550043,4389.8,4389.3,7.2078]
[1756532164101,0.19550043,4389.7,4389.4,0.65704]
[1756532164308,0.0056,4389.9,4389.6,0.41002]
[1756532164504,0.0056,4389.9,4389.8,3.2078]
[1756532164704,0.19609329,4390.7,4389.8,3.2078]
[1756532164902,0.19609329,4390.6,4389.9,0.247]
[1756532165100,0.19609329,4390.5,4390.3,3.2078]
[1756532165307,0.19613002,4390.4,4390.3,3.2078]
[1756532165500,0.19613796,4390.7,4390.3,3.2078]
[1756532165816,0.19613796,4390.6,4390.3,3.2078]
[1756532166005,0.19613796,4390.5,4390.3,3.2078]
[1756532166199,0.19613796,4390.4,4390.3,3.2078]
[1756532166897,0.19613796,4390.5,4390.3,3.2078]
[1756532167101,0.19613796,4390.4,4390.3,3.2078]
[1756532167900,0.19613796,4390.7,4390.3,3.2078]
[1756532168107,0.48713796,4390.6,4390.3,3.2078]
[1756532168308,0.19613796,4390.5,4390.3,3.2078]
[1756532168505,0.19613796,4390.4,4390.3,3.2078]
[1756532168704,0.48713796,4390.7,4390.3,3.2078]
[1756532168904,0.19613796,4390.6,4390.3,3.2078]
[1756532169609,0.48713796,4390.6,4390.3,3.2078]
[1756532169797,0.19613796,4390.5,4390.3,3.2078]
[1756532170411,0.48713796,4390.5,4390.3,3.2078]
[1756532170708,0.19613796,4390.4,4390.3,3.2078]
[1756532171011,0.19613796,4390.4,4390.3,3.4538]
[1756532171314,0.0056,4390.9,4390.7,0.40992]
[1756532171609,0.0056,4390.9,4390.8,3.4538]
[1756532171811,0.291,4391.7,4390.9,0.4099]
[1756532172002,0.19611351,4391.6,4391.3,3.2078]
[1756532172199,0.19611351,4391.5,4391.4,0.246]
[1756532175310,0.291,4391.5,4391.4,0.246]
[1756532175510,0.48291756,4391.5,4391.4,0.246]
[1756532176113,0.19191756,4391.5,4391.3,3.2078]
[1756532176405,0.1918905,4391.4,4391.3,3.4528]
[1756532176905,0.0055,4391.9,4391.3,3.4528]
[1756532177105,0.38275028,4391.8,4391.3,3.4528]
[1756532177299,0.291,4391.7,4391.3,3.4528]
[1756532177500,0.0055,4391.9,4391.3,3.4528]
[1756532177806,0.0055,4391.9,4391.8,3.2078]
[1756532178000,0.19177462,4391.9,4391.8,3.4538]
[1756532178210,0.4819,4392.8,4392.0,0.40979]
[1756532178405,0.19168251,4392.7,4392.6,3.2078]
[1756532178807,0.67358251,4392.7,4392.6,3.2078]
[1756532181112,0.19168251,4392.7,4392.6,3.2078]
[1756532181808,0.48268251,4392.7,4392.6,3.2078]
[1756532183012,0.67358251,4392.7,4392.6,3.2078]
[1756532184013,0.67320985,4392.7,4392.6,3.2078]
[1756532186014,0.67310448,4392.7,4392.6,3.2078]
[1756532186210,0.4819,4392.7,4392.6,3.2078]
[1756532186411,4.41855,4392.7,4391.5,3.2078]
[1756532186612,0.4819,4391.6,4391.5,3.2078]
[1756532187807,0.67319509,4391.6,4391.5,3.2078]
[1756532189623,0.19129509,4391.6,4391.5,3.4518]
[1756532189918,3.2078,4393.0,4391.5,3.4518]
[1756532190118,0.4819,4392.2,4392.1,3.2078]
[1756532190318,0.6732738,4392.2,4392.1,3.2078]
[1756532191413,0.1913738,4392.2,4392.1,3.2078]
[1756532191618,0.1913738,4392.2,4392.1,3.4518]
[1756532192421,0.1964,4393.1,4392.1,3.4518]
[1756532192721,0.291,4392.8,4392.6,3.2078]
[1756532193014,0.291,4393.0,4392.6,3.4518]
[1756532193218,0.19158585,4392.9,4392.6,3.4518]
[1756532193520,0.291,4393.0,4392.6,3.4518]
[1756532193720,0.19155409,4392.9,4392.6,3.4518]
[1756532194017,0.0055,4393.1,4392.6,3.4518]
[1756532194220,0.19155408,4393.0,4392.6,3.4518]
[1756532194420,0.19155408,4392.9,4392.6,3.4518]
[1756532194721,0.0055,4393.1,4392.6,3.4518]
[1756532194915,0.19157011,4393.0,4392.6,3.4518]
[1756532195214,0.19157011,4392.9,4392.6,3.4518]
[1756532195419,0.0055,4393.1,4392.6,3.4518]
[1756532195616,0.19156728,4393.0,4392.6,3.4518]
[1756532195816,0.0055,4393.1,4392.9,0.4097]
[1756532196014,0.0055,4393.1,4393.0,0.244]
[1756532196915,0.0055,4393.1,4393.0,4.244]
[1756532198516,0.0055,4393.1,4393.0,4.0]
[1756532198719,0.0055,4393.1,4393.0,4.243]
[1756532199812,3.2078,4395.1,4393.4,0.40965]
[1756532200015,0.3022,4394.9,4393.9,3.2078]
[1756532200217,0.5077,4394.5,4394.4,3.2078]
[1756532200514,32.792,4396.5,4394.4,3.2078]
[1756532200515,0.181,4395.9,4394.4,3.2078]
[1756532200722,0.3022,4394.6,4394.5,0.243]
[1756532201016,0.3022,4395.8,4394.4,3.2078]
[1756532201225,0.1913358,4395.7,4394.9,3.2078]
[1756532201517,0.1913358,4395.6,4395.0,0.243]
[1756532201711,0.5077,4395.4,4395.0,0.243]
[1756532201916,0.1913358,4395.3,4395.0,0.243]
[1756532202217,0.1913358,4395.2,4395.0,0.243]
[1756532202416,0.3022,4395.6,4394.9,3.2078]
[1756532202722,0.3022,4395.4,4395.2,3.2078]
[1756532202922,0.3022,4396.3,4395.3,0.243]
[1756532203219,0.5077,4395.3,4395.2,3.2078]
[1756532203417,0.69873942,4395.3,4395.2,3.2078]
[1756532203717,4.69873942,4395.3,4395.2,3.2078]
[1756532204323,0.69873942,4395.3,4395.2,3.2078]
[1756532204821,0.5077,4395.3,4395.2,3.2078]
[1756532206122,0.5077,4395.3,4394.8,0.243]
[1756532206317,0.5077,4395.3,4395.2,3.2078]
[1756532206720,0.5077,4395.3,4394.8,0.243]
[1756532207120,0.2055,4394.9,4394.8,0.243]
[1756532207419,0.3022,4395.8,4395.1,0.4095]
[1756532207617,0.5077,4395.8,4395.2,3.4508]
[1756532209521,3.2078,4397.3,4395.7,3.61724]
[1756532209723,0.5077,4396.5,4396.4,3.2078]
[1756532210022,0.3022,4397.2,4396.3,0.244]
[1756532211121,0.3022,4397.2,4396.4,3.61718]
[1756532211321,3.2078,4397.3,4396.5,0.243]
[1756532211515,0.3022,4397.2,4396.5,0.243]
[1756532211722,0.3022,4397.2,4396.4,3.2078]
[1756532212027,0.5077,4396.6,4396.5,0.243]
[1756532212620,0.3022,4396.5,4396.4,3.2078]
[1756532212821,0.5077,4396.5,4395.9,3.2078]
[1756532213021,0.3022,4396.4,4396.0,0.243]
[1756532213218,3.2078,4397.3,4395.9,3.2078]
[1756532213422,0.3022,4397.2,4396.0,0.243]
[1756532213726,3.2078,4397.3,4396.0,3.4508]
[1756532213923,0.3022,4397.2,4396.0,3.4508]
[1756532214123,3.2078,4397.3,4396.0,3.4508]
[1756532214327,0.3022,4397.2,4396.0,3.4508]
[1756532214527,0.3022,4397.2,4396.1,0.243]
[1756532214828,3.2078,4397.3,4396.0,3.2078]
[1756532215131,0.3022,4397.2,4396.1,0.243]